bitfinex-derivatives/quotes_SOLF0:USTF0_20250714
["timestamp","ask_amount","ask_price","bid_price","bid_amount"]
[1752522883733,9.5335,164.09,164.06,9.7042]
[1752522883926,3.44,164.08,164.06,9.7042]
[1752522884131,3.44,164.08,164.07,3.61]
[1752522884434,3.44,164.08,164.07,9.7041]
[1752522885632,3.44,164.07,164.04,3.61]
[1752522885830,3.44,164.07,164.05,3.61]
[1752522886338,3.44,164.07,164.05,9.7046]
[1752522886741,9.5344,164.06,164.05,3.61]
[1752522886947,3.44,164.06,164.05,3.61]
[1752522887144,3.44,164.06,164.04,6.095]
[1752522887443,4.58034491,164.06,164.02,3.61]
[1752522887640,3.44,164.05,164.03,3.61]
[1752522887940,6.0951,164.05,164.0,3.61]
[1752522888132,3.44,164.04,164.0,3.61]
[1752522888538,3.44,164.04,164.02,6.0956]
[1752522888734,3.44,164.04,164.03,3.61]
[1752522891637,3.44,164.04,164.02,6.0958]
[1752522891638,3.44,164.03,164.02,3.61]
[1752522892341,3.44,164.03,164.02,9.7059]
[1752522894744,0.03948874,164.05,164.04,9.7052]
[1752522895239,3.44,164.06,164.05,9.7047]
[1752522895638,3.44,164.06,164.05,3.61]
[1752522898834,9.5344,164.06,164.01,4.58034491]
[1752522899135,3.44,164.05,164.04,3.61]
[1752522899336,3.44,164.05,164.02,6.0957]
[1752522899540,3.44,164.05,164.03,3.61]
[1752522900137,9.5351,164.05,164.03,3.61]
[1752522900342,3.44,164.04,163.98,4.58034491]
[1752522900542,3.44,164.04,163.99,3.63]
[1752522900844,3.44,164.01,164.0,3.63]
[1752522901943,3.44,164.01,164.0,9.7267]
[1752522902145,3.44,164.02,164.01,3.63]
[1752522902737,9.5359,164.02,164.01,3.63]
[1752522903047,3.44,164.02,164.01,3.63]
[1752522904251,9.5359,164.02,164.01,3.63]
[1752522905154,3.44,164.01,164.0,3.63]
[1752522906855,3.44,164.01,164.0,9.7267]
[1752522907758,3.44,164.01,164.0,3.63]
[1752522909057,3.44,164.0,163.95,3.63]
[1752522909259,215.66035131,164.04,163.89,18.92081385]
[1752522909260,3.44,163.97,163.92,4.58034491]
[1752522909459,4.58034491,164.01,163.96,3.63]
[1752522909668,3.44,163.98,163.96,3.63]
[1752522909953,9.5374,163.99,163.96,3.63]
[1752522910655,9.5374,163.99,163.96,6.0979]
[1752522910961,3.44,164.02,163.98,4.58034491]
[1752522911152,3.44,164.02,164.0,3.63]
[1752522911557,3.44,164.04,164.0,3.63]
[1752522911758,3.44,164.03,164.0,6.0966]
[1752522912054,3.44,164.03,164.01,3.63]
[1752522912253,9.5357,164.03,164.01,3.63]
[1752522912761,3.44,164.03,164.01,3.63]
[1752522913855,3.44,164.05,164.02,3.63]
[1752522914462,3.44,164.05,164.02,6.0956]
[1752522914657,3.44,164.05,164.03,3.63]
[1752522915659,3.44,164.05,164.04,3.63]
[1752522915856,215.66035131,164.06,164.04,3.63]
[1752522916062,3.44,164.06,164.04,3.63]
[1752522916263,3.44,164.06,164.04,9.725]
[1752522916462,3.44,164.06,164.05,3.63]
[1752522916664,3.44,164.07,164.05,3.63]
[1752522917965,3.44,164.07,164.05,9.7248]
[1752522918164,3.44,164.07,164.06,3.63]
[1752522919566,6.0934,164.09,164.06,3.63]
[1752522919969,3.44,164.08,164.06,3.63]
[1752522920668,3.44,164.07,164.05,6.0948]
[1752522921162,3.44,164.07,164.06,3.63]
[1752522922966,3.44,164.07,164.04,3.63]
[1752522923168,3.44,164.06,164.0,3.63]
[1752522923368,3.44,164.06,164.01,6.0961]
[1752522923569,3.44,164.06,164.02,3.63]
[1752522923961,4.58034491,164.07,164.02,3.63]
[1752522923962,3.44,164.07,164.03,3.63]
[1752522924162,3.44,164.07,164.04,3.63]
[1752522924459,220.24069622,164.08,164.04,3.63]
[1752522924460,6.0947,164.06,164.04,3.63]
[1752522924663,3.44,164.05,164.04,3.63]
[1752522925265,215.66035131,164.08,164.04,3.63]
[1752522925468,3.44,164.07,164.04,3.63]
[1752522925769,3.44,164.07,164.06,3.63]
[1752522926967,219.10035131,164.08,164.06,3.63]
[1752522927169,3.44,164.07,164.06,3.63]
[1752522930167,3.44,164.07,164.04,3.63]
[1752522930568,6.0952,164.04,163.99,4.58034491]
[1752522930868,3.65,164.02,163.99,4.58034491]
[1752522931269,3.65,164.02,164.01,6.0963]
[1752522931574,3.65,164.06,164.0,3.3]
[1752522931870,3.65,164.06,164.03,3.3]
[1752522932177,9.7446,164.06,164.04,3.3]
[1752522932370,3.65,164.05,164.04,3.3]
[1752522932874,6.0948,164.05,164.03,3.3]
[1752522933173,3.65,164.04,164.03,3.3]
[1752522936670,3.65,164.04,163.98,181.56034491]
[1752522936871,3.65,164.04,164.02,3.3]
[1752522937272,3.65,164.04,164.02,9.3959]
[1752522937574,3.65,164.03,164.02,3.3]
[1752522937776,3.65,164.03,164.02,9.3959]
[1752522937972,3.65,164.03,164.0,3.3]
[1752522938175,4.58034491,164.05,164.01,6.0961]
[1752522938475,3.65,164.04,164.02,3.3]
[1752522938875,3.65,164.03,164.02,3.3]
[1752522939377,3.65,164.03,164.02,6.0959]
[1752522939676,3.65,164.03,164.02,9.3959]
[1752522940772,3.65,164.03,164.02,3.3]
[1752522941876,3.65,164.03,163.99,3.3]
[1752522942576,3.65,164.02,164.0,3.3]
[1752522943479,4.58034491,164.05,164.0,6.0964]
[1752522943675,3.65,164.01,164.0,6.0964]
[1752522943976,3.65,164.03,163.96,531.30034491]
[1752522944178,3.65,164.03,163.97,3.3]
[1752522944680,3.65,164.03,164.0,6.0964]
[1752522944882,3.65,164.02,164.01,3.3]
[1752522948791,220.24043194,164.06,163.99,3.3]
[1752522949181,3.65,164.02,163.99,9.3968]
[1752522949381,3.65,164.01,164.0,3.3]
[1752522950086,6.0958,164.03,164.0,6.0967]
[1752522950286,3.65,164.02,164.01,3.3]
[1752522953282,3.65,164.02,164.0,9.3967]
[1752522953482,3.65,164.02,164.01,3.3]
[1752522953890,3.65,164.01,163.99,3.3]
[1752522954291,3.65,164.0,163.97,3.3]
[1752522954894,3.65,164.0,163.98,6.0974]
[1752522955093,3.65,164.0,163.99,3.3]
[1752522956089,3.65,164.02,163.98,4.58008063]
[1752522956290,3.65,164.01,163.99,3.3]
[1752522956697,3.65,164.01,164.0,9.3964]
[1752522957292,219.31035131,164.03,164.01,6.0962]
[1752522957489,3.65,164.02,163.98,4.58008063]
[1752522957890,3.65,164.02,164.0,6.0965]
[1752522958086,3.65,164.02,164.01,3.3]
[1752522960799,3.65,164.02,164.01,9.3963]
[1752522960999,3.51,164.04,164.01,3.3]
[1752522961496,3.51,164.04,164.02,6.0957]
[1752522961701,3.51,164.04,164.03,3.32]
[1752522961896,3.51,164.04,164.01,3.32]
[1752522962099,3.51,164.02,164.01,3.32]
[1752522962499,3.51,164.02,164.0,3.32]
[1752522962699,3.51,164.02,163.96,3.32]
[1752522962895,4.58008063,163.99,163.94,3.32]
[1752522963098,3.51,163.98,163.93,9.419]
[1752522963299,3.51,163.98,163.94,3.32]
[1752522963505,3.51,163.98,163.91,526.7]
[1752522963699,6.0981,163.96,163.95,3.32]
[1752522963902,9.6081,163.96,163.95,3.32]
[1752522964310,3.51,163.96,163.95,3.32]
[1752522965097,3.51,163.96,163.95,9.4185]
[1752522965401,3.51,163.99,163.96,3.32]
[1752522965704,3.51,163.98,163.96,3.32]
[1752522966503,3.51,163.99,163.96,3.32]
[1752522967006,3.51,163.98,163.96,3.32]
[1752522967505,3.51,163.97,163.96,3.32]
[1752522968201,3.51,163.97,163.94,6.0987]
[1752522968402,3.51,163.97,163.91,531.28248453]
[1752522968705,3.51,163.95,163.94,3.32]
[1752522969906,9.6085,163.95,163.94,3.32]
[1752522970205,9.6085,163.95,163.91,531.28248453]
[1752522970206,9.6085,163.95,163.91,6.0999]
[1752522970506,4.58248453,163.97,163.91,6.0999]
[1752522970507,3.51,163.93,163.91,3.32]
[1752522971000,3.51,163.94,163.92,3.32]
[1752522972504,6.0986,163.95,163.9,176.86]
[1752522972701,3.51,163.93,163.92,6.0994]
[1752522973100,3.51,163.93,163.92,9.4194]
[1752522979906,3.51,163.95,163.94,3.32]
[1752522980399,215.66035131,164.0,163.94,3.32]
[1752522980604,3.51,163.99,163.94,3.32]
[1752522980999,3.51,163.98,163.96,9.4181]
[1752522981606,9.6075,163.98,163.96,3.32]
[1752522981811,3.51,163.97,163.89,176.84]
[1752522982008,3.51,163.97,163.9,3.32]
[1752522982209,3.51,163.95,163.92,6.0994]
[1752522982505,3.51,163.95,163.89,176.84]
[1752522982707,3.51,163.95,163.9,6.1001]
[1752522983008,3.51,163.95,163.9,3.32]
[1752522983204,6.0992,163.94,163.89,176.84]
[1752522983404,3.51,163.93,163.89,176.84]
[1752522983606,3.51,163.93,163.91,3.32]
[1752522984707,3.51,163.93,163.9,6.1001]
[1752522984914,3.51,163.93,163.9,3.32]
[1752522985113,3.51,163.93,163.91,3.32]
[1752522985915,3.51,163.93,163.91,9.42]
[1752522986115,3.51,163.93,163.91,3.32]
[1752522986812,3.51,163.93,163.9,6.1003]
[1752522987115,3.51,163.93,163.9,9.4203]
[1752522988016,3.51,163.93,163.9,6.1003]
[1752522988214,3.51,163.93,163.91,9.4199]
[1752522988819,3.51,163.93,163.91,3.32]
[1752522989016,3.51,163.92,163.91,3.32]
[1752522989411,3.51,163.92,163.9,6.1003]
[1752522989412,3.51,163.92,163.9,3.32]
[1752522989813,4.58248453,163.93,163.84,298.04778822]
[1752522990008,3.51,163.9,163.85,3.32]
[1752522990409,4.58248453,163.87,163.8,4.58248453]
[1752522990610,3.33,163.88,163.81,3.52]
[1752522991017,3.33,163.88,163.84,3.52]
[1752522991714,3.33,163.87,163.85,3.52]
[1752522992419,3.33,163.86,163.81,3.52]
[1752522992917,3.33,163.84,163.83,3.52]
[1752522993118,3.33,163.84,163.79,3.52]
[1752522993413,4.58248453,163.85,163.77,177.64]
[1752522993613,3.33,163.81,163.78,3.52]
[1752522993920,3.33,163.81,163.79,6.1045]
[1752522994114,3.33,163.81,163.8,3.52]
[1752522995412,3.33,163.81,163.79,3.52]
[1752522995617,9.4338,163.81,163.79,3.52]
[1752522995817,3.33,163.8,163.77,181.16]
[1752522996116,10.68548453,163.83,163.77,177.64]
[1752522996418,3.33,163.82,163.77,177.64]
[1752522996614,3.33,163.82,163.78,3.52]
[1752522997116,3.33,163.82,163.79,6.1043]
[1752522997319,4.58248453,163.83,163.77,177.64]
[1752522997619,3.33,163.81,163.77,177.64]
[1752522998007,3.33,163.8,163.78,3.52]
[1752522998412,3.33,163.8,163.79,9.6243]
[1752522998915,3.33,163.8,163.79,3.52]
[1752522999821,3.33,163.8,163.78,3.52]
[1752523000016,3.33,163.8,163.77,181.16]
[1752523000520,3.33,163.8,163.78,3.52]
[1752523001019,3.33,163.79,163.77,177.64]
[1752523001219,3.33,163.78,163.77,177.64]
[1752523001622,3.33,163.78,163.77,181.16]
[1752523002425,3.33,163.8,163.78,3.52]
[1752523002722,4.58248453,163.83,163.78,3.52]
[1752523002723,9.4334,163.82,163.78,9.6247]
[1752523002917,3.33,163.81,163.8,3.52]
[1752523006325,3.33,163.83,163.81,3.52]
[1752523006527,3.33,163.85,163.82,3.52]
[1752523006726,215.66035131,163.88,163.82,3.52]
[1752523006927,3.33,163.87,163.85,3.52]
[1752523007127,215.66035131,163.88,163.86,3.52]
[1752523007628,3.33,163.87,163.86,3.52]
[1752523008020,6.1015,163.87,163.83,6.1029]
[1752523008224,3.33,163.86,163.85,3.52]
[1752523009030,9.4319,163.86,163.85,3.52]
[1752523009432,9.4319,163.86,163.83,3.52]
[1752523009630,3.33,163.85,163.84,3.52]
[1752523010130,3.33,163.85,163.84,9.6226]
[1752523010431,3.33,163.86,163.82,3.52]
[1752523010725,3.33,163.85,163.84,3.52]
[1752523012625,221.76155131,163.88,163.84,3.52]
[1752523012828,218.99035131,163.88,163.84,3.52]
[1752523013027,3.33,163.87,163.84,3.52]
[1752523013235,3.33,163.87,163.85,6.102]
[1752523013435,3.33,163.87,163.86,3.52]
[1752523015033,9.4315,163.87,163.86,3.52]
[1752523016238,3.33,163.87,163.86,3.52]
[1752523017433,215.66035131,163.88,163.86,3.52]
[1752523017635,218.99035131,163.88,163.86,3.52]
[1752523017834,218.99035131,163.88,163.87,3.52]
[1752523018735,218.99035131,163.88,163.85,6.1022]
[1752523018935,3.33,163.87,163.85,6.1022]
[1752523019137,3.33,163.87,163.86,6.1019]
[1752523019442,3.33,163.87,163.83,4.58248453]
[1752523019640,3.33,163.87,163.84,3.52]
[1752523020040,3.33,163.87,163.86,3.52]
[1752523020246,215.66035131,163.88,163.86,3.52]
[1752523020444,218.99035131,163.88,163.86,3.52]
[1752523020842,218.99035131,163.88,163.86,9.6217]
[1752523021040,218.99035131,163.88,163.86,3.52]
[1752523021242,3.32,163.87,163.84,3.66]
[1752523021541,3.32,163.87,163.86,3.66]
[1752523021842,215.66035131,163.88,163.86,3.66]
[1752523022045,218.98035131,163.88,163.86,3.66]
[1752523023137,3.32,163.87,163.86,6.1019]
[1752523023546,3.32,163.87,163.83,4.58248453]
[1752523023747,3.32,163.87,163.84,3.66]
[1752523024043,3.32,163.87,163.85,6.102]
[1752523024245,3.32,163.87,163.86,3.66]
[1752523024636,215.66035131,163.88,163.83,4.58248453]
[1752523024843,215.66035131,163.88,163.84,3.66]
[1752523025038,3.32,163.86,163.85,9.762]
[1752523025843,218.98035131,163.88,163.87,3.66]
[1752523026448,215.66035131,163.88,163.86,3.66]
[1752523026649,3.32,163.87,163.86,3.66]
[1752523027144,3.32,163.87,163.86,9.7619]
[1752523027650,3.32,163.87,163.86,3.66]
[1752523028249,3.32,163.87,163.86,9.7619]
[1752523028753,215.66035131,163.93,163.87,3.66]
[1752523028946,3.32,163.91,163.88,3.66]
[1752523029146,3.32,163.92,163.86,3.66]
[1752523029345,3.32,163.92,163.89,9.7606]
[1752523030050,3.32,163.92,163.9,3.66]
[1752523030750,3.32,163.92,163.89,9.7606]
[1752523030950,3.32,163.92,163.9,3.66]
[1752523031151,3.32,163.92,163.89,6.1006]
[1752523031351,3.32,163.92,163.91,3.66]
[1752523031550,3.32,163.92,163.89,6.1006]
[1752523031853,3.32,163.92,163.89,9.7606]
[1752523032357,3.32,163.92,163.89,6.1006]
[1752523032652,3.32,163.92,163.9,3.66]
[1752523033653,3.32,163.92,163.9,9.7602]
[1752523033843,3.32,163.92,163.91,3.66]
[1752523034048,3.32,163.92,163.89,6.1005]
[1752523034255,3.32,163.92,163.9,3.66]
[1752523035750,3.32,163.92,163.88,6.101]
[1752523035951,177.26,163.92,163.89,3.66]
[1752523036150,3.32,163.91,163.89,3.66]
[1752523036755,3.32,163.91,163.89,9.7607]
[1752523037256,3.32,163.91,163.89,3.66]
[1752523038557,7.90248453,163.91,163.87,3.66]
[1752523038757,3.32,163.88,163.82,3.66]
[1752523039056,3.32,163.88,163.85,6.102]
[1752523039252,3.32,163.88,163.86,3.66]
[1752523039459,6.1013,163.88,163.84,6.1024]
[1752523039657,3.32,163.87,163.85,3.66]
[1752523039862,3.32,163.87,163.86,3.66]
[1752523040557,3.32,163.89,163.87,6.1015]
[1752523040754,3.32,163.89,163.88,3.66]
[1752523041154,218.98035131,163.91,163.88,3.66]
[1752523041357,218.98035131,163.91,163.85,4.58248453]
[1752523041358,3.32,163.9,163.89,3.66]
[1752523044155,3.32,163.91,163.9,3.66]
[1752523044457,220.24283584,163.95,163.9,3.66]
[1752523044661,177.54,163.94,163.9,3.66]
[1752523044863,3.32,163.93,163.92,3.66]
[1752523045364,3.32,163.94,163.89,4.58248453]
[1752523045659,215.66035131,163.95,163.92,3.66]
[1752523045855,3.32,163.93,163.92,6.0994]
[1752523046161,3.32,163.94,163.89,4.58248453]
[1752523046353,3.32,163.94,163.9,3.66]
[1752523046757,215.66035131,163.95,163.92,6.0994]
[1752523046961,3.32,163.93,163.92,6.0994]
[1752523047561,3.32,163.93,163.92,9.7594]
[1752523049169,218.98035131,163.95,163.93,6.0991]
[1752523049367,3.32,163.94,163.93,9.7591]
[1752523050570,3.32,163.94,163.93,3.66]
[1752523050866,3.32,163.94,163.91,3.63]
[1752523051064,8.20248453,163.93,163.9,6.1002]
[1752523051267,3.62,163.92,163.9,6.1002]
[1752523052467,3.62,163.92,163.9,9.7302]
[1752523053265,3.62,163.92,163.89,6.1005]
[1752523053659,3.62,163.92,163.89,9.7305]
[1752523053862,4.58248453,163.91,163.89,9.7305]
[1752523054063,4.58248453,163.91,163.87,3.63]
[1752523054064,3.62,163.9,163.87,3.63]
[1752523054267,3.62,163.88,163.82,3.63]
[1752523054770,3.62,163.88,163.85,9.732]
[1752523055267,3.62,163.88,163.86,9.7318]
[1752523055766,3.62,163.88,163.86,3.63]
[1752523056271,3.62,163.88,163.85,9.7321]
[1752523056870,9.7211,163.88,163.85,9.7321]
[1752523057071,3.62,163.87,163.85,9.7321]
[1752523057463,3.62,163.86,163.84,6.1024]
[1752523059272,3.62,163.86,163.85,9.7322]
[1752523059773,3.62,163.86,163.85,3.63]
[1752523060067,3.62,163.86,163.8,177.34]
[1752523060270,3.62,163.84,163.81,3.63]
[1752523060472,3.62,163.84,163.83,9.7327]
[1752523062269,219.28035131,163.86,163.83,3.63]
[1752523062473,219.28035131,163.86,163.85,9.7322]
[1752523062667,219.28035131,163.86,163.85,3.63]
[1752523063672,219.28035131,163.86,163.84,6.1025]
[1752523063873,3.62,163.85,163.84,9.7325]
[1752523064674,3.62,163.85,163.84,3.63]
[1752523064872,215.66035131,163.86,163.83,6.1028]
[1752523065065,3.62,163.84,163.83,6.1028]
[1752523065575,3.62,163.84,163.83,9.7328]
[1752523065781,3.62,163.84,163.83,3.63]
[1752523066479,3.62,163.84,163.83,9.733]
[1752523068377,3.62,163.85,163.84,6.1023]
[1752523068675,215.66035131,163.86,163.82,4.58248453]
[1752523068980,215.66035131,163.86,163.85,9.7322]
[1752523069181,219.28035131,163.86,163.85,3.63]
[1752523069981,219.28035131,163.86,163.85,9.7322]
[1752523071082,219.28035131,163.86,163.85,3.63]
[1752523073277,3.62,163.86,163.85,3.63]
[1752523073977,3.62,163.86,163.8,3.63]
[1752523073978,3.62,163.85,163.8,3.63]
[1752523074181,4.58248453,163.84,163.78,177.16]
[1752523074374,3.62,163.83,163.81,3.63]
[1752523075278,3.62,163.82,163.78,177.16]
[1752523075975,3.62,163.82,163.79,3.63]
[1752523076272,3.62,163.82,163.8,6.1041]
[1752523076477,3.62,163.82,163.81,3.63]
[1752523077281,3.62,163.83,163.81,3.63]
[1752523077578,3.62,163.82,163.78,177.16]
[1752523077780,3.62,163.82,163.81,6.1037]
[1752523078081,3.62,163.82,163.81,3.63]
[1752523079084,3.62,163.82,163.81,9.7337]
[1752523080878,3.5,163.83,163.82,3.48]
[1752523081086,3.5,163.85,163.82,3.48]
[1752523081477,3.5,163.85,163.84,3.48]
[1752523081678,215.66035131,163.86,163.84,3.48]
[1752523081884,219.16035131,163.86,163.84,3.48]
[1752523082081,219.16035131,163.86,163.84,9.5824]
[1752523082281,219.16035131,163.86,163.85,3.48]
[1752523083587,219.16035131,163.86,163.85,9.5822]
[1752523084186,219.16035131,163.86,163.85,3.48]
[1752523085090,3.5,163.86,163.85,3.48]
[1752523085489,3.5,163.86,163.85,9.5822]
[1752523086091,3.5,163.86,163.85,3.48]
[1752523087391,3.5,163.86,163.85,9.5822]
[1752523087887,3.5,163.86,163.85,3.48]
[1752523090296,3.5,163.86,163.85,9.5822]
[1752523090493,3.5,163.86,163.85,3.48]
[1752523090891,3.5,163.86,163.85,9.5822]
[1752523091292,219.16035131,163.88,163.86,3.48]
[1752523091494,219.16035131,163.88,163.87,9.5815]
[1752523092196,219.16035131,163.88,163.87,3.48]
[1752523093696,219.16035131,163.88,163.87,9.5815]
[1752523096994,3.5,163.88,163.87,9.5815]
[1752523098001,3.5,163.88,163.87,3.48]
[1752523100399,3.5,163.89,163.86,3.48]
[1752523101303,3.5,163.9,163.88,6.1008]
[1752523101504,215.66035131,163.92,163.89,8.06248453]
[1752523101704,215.66035131,163.92,163.89,4.58248453]
[1752523102002,215.66035131,163.92,163.91,6.1]
[1752523102202,3.5,163.93,163.91,3.48]
[1752523102405,3.5,163.93,163.9,3.48]
[1752523102599,3.5,163.93,163.89,4.58248453]
[1752523102600,3.5,163.93,163.91,3.48]
[1752523102800,3.5,163.93,163.92,3.48]
[1752523105512,3.5,163.93,163.9,3.48]
[1752523107111,9.5995,163.93,163.9,9.5803]
[1752523107306,3.5,163.92,163.9,9.5803]
[1752523109006,3.5,163.91,163.9,9.5803]
[1752523109904,3.5,163.91,163.9,3.48]
[1752523110108,3.5,163.91,163.89,6.1005]
[1752523110703,3.5,163.91,163.89,9.6105]
[1752523111704,3.5,163.91,163.9,6.1003]
[1752523112813,3.35,163.92,163.91,9.6099]
[1752523113009,3.35,163.92,163.91,3.51]
[1752523113615,215.66035131,163.94,163.91,3.51]
[1752523113912,215.66035131,163.94,163.92,3.51]
[1752523114513,3.35,163.93,163.92,3.51]
[1752523116012,3.35,163.93,163.92,9.6096]
[1752523116203,3.35,163.93,163.92,3.51]
[1752523118518,3.35,163.93,163.92,9.6096]
[1752523118712,215.66035131,163.94,163.92,9.6096]
[1752523118912,219.01035131,163.94,163.93,3.51]
[1752523119313,219.01035131,163.94,163.93,9.6092]
[1752523119508,219.01035131,163.97,163.94,3.51]
[1752523119714,3.35,163.97,163.94,3.51]
[1752523119917,3.35,163.97,163.95,6.0985]
[1752523120114,3.35,163.97,163.96,3.51]
[1752523120722,3.35,163.97,163.96,9.6081]
[1752523121210,3.35,163.99,163.96,9.6081]
[1752523121414,3.35,163.99,163.96,6.0981]
[1752523121714,3.35,163.99,163.98,3.51]
[1752523121910,3.35,163.99,163.97,3.51]
[1752523122822,3.35,163.97,163.91,4.58248453]
[1752523123022,3.35,163.97,163.92,3.51]
[1752523123220,3.35,163.97,163.95,6.0984]
[1752523123416,3.35,163.97,163.96,3.51]
[1752523124225,3.35,163.97,163.96,9.6081]
[1752523125124,3.35,163.97,163.96,3.51]
[1752523125720,3.35,163.97,163.96,9.6081]
[1752523126822,3.35,163.99,163.98,3.51]
[1752523127328,3.35,163.99,163.96,6.0979]
[1752523127628,9.447,163.99,163.97,3.51]
[1752523127827,3.35,163.99,163.93,3.51]
[1752523128028,3.35,163.99,163.96,6.0979]
[1752523128222,3.35,163.98,163.92,4.58248453]
[1752523128622,3.35,163.98,163.97,6.0977]
[1752523128823,3.35,163.99,163.94,4.58248453]
[1752523129135,3.35,163.99,163.88,12.2016]
[1752523129136,215.66035131,164.01,163.98,3.51]
[1752523129430,3.35,164.0,163.98,3.51]
[1752523129617,3.35,164.0,163.98,9.607]
[1752523129821,3.35,164.0,163.99,3.51]
[1752523130623,3.35,164.0,163.99,6.097]
[1752523130829,215.66035131,164.01,163.99,3.51]
[1752523131224,219.01035131,164.01,163.99,3.51]
[1752523131927,219.01035131,164.01,164.0,9.6066]
[1752523132431,176.88,164.04,163.97,3.51]
[1752523132432,3.35,164.0,163.97,3.51]
[1752523132625,3.35,163.99,163.97,3.51]
[1752523132824,3.35,163.99,163.98,6.0974]
[1752523133025,3.35,163.99,163.98,9.6074]
[1752523133225,3.35,164.0,163.98,3.51]
[1752523133633,3.35,164.0,163.99,6.097]
[1752523133829,3.35,164.0,163.99,9.607]
[1752523134427,3.35,164.01,164.0,6.0964]
[1752523134629,3.35,164.01,164.0,9.6064]
[1752523135427,3.35,164.01,164.0,3.51]
[1752523136128,3.35,164.01,163.99,9.6068]
[1752523136323,3.35,164.0,163.98,9.6071]
[1752523136518,3.35,164.01,163.98,3.51]
[1752523136723,3.35,164.0,163.98,3.51]
[1752523137126,3.35,164.02,163.99,3.51]
[1752523137728,3.35,164.03,164.01,3.51]
[1752523137929,3.35,164.02,164.01,3.51]
[1752523138326,3.35,164.02,164.01,9.606]
[1752523138529,176.88,164.04,164.01,3.51]
[1752523138530,3.35,164.03,164.01,3.51]
[1752523138920,3.35,164.03,164.02,6.0959]
[1752523139125,180.23,164.04,163.99,3.51]
[1752523139322,3.35,164.03,164.02,6.0957]
[1752523139525,3.35,164.03,164.02,9.6057]
[1752523141933,3.45,164.04,164.02,3.51]
[1752523142830,219.11035131,164.05,164.04,3.38]
[1752523143025,3.45,164.1,164.04,3.38]
[1752523143336,5.12442726,164.13,164.1,3.38]
[1752523143630,5.12442726,164.14,164.13,3.38]
[1752523143832,8.57442726,164.14,164.13,3.38]
[1752523144130,3.45,164.14,164.13,3.38]
[1752523144335,5.397e-05,164.14,164.13,7.95167421]
[1752523144525,6.83256968,164.17,164.16,6.0907]
[1752523144831,3.45,164.17,164.16,3.38]
[1752523145035,3.45,164.17,164.11,4.57066604]